bitfinex-derivatives/quotes_ETHF0:USTF0_20250730
["timestamp","ask_amount","ask_price","bid_price","bid_amount"]
[1753917158800,1.27578,3781.7,3781.6,1.9127]
[1753917158997,0.52885,3781.9,3781.8,1.1389]
[1753917159199,1.47295,3781.9,3781.8,1.9127]
[1753917160800,1.71785,3781.9,3781.8,1.9127]
[1753917161007,2.24875,3781.9,3781.8,1.9127]
[1753917163008,0.4966,3781.5,3781.4,0.7738]
[1753917163208,1.7199,3781.5,3781.4,0.7738]
[1753917163407,2.2488,3781.5,3781.4,0.7738]
[1753917163609,1.7179,3781.5,3781.4,1.9127]
[1753917164403,0.9441,3781.5,3781.4,1.9127]
[1753917164709,0.52889,3781.6,3781.4,1.9127]
[1753917164904,0.97639,3781.6,3781.5,1.9127]
[1753917165209,1.27579,3781.6,3781.5,1.9127]
[1753917167503,0.52888,3781.7,3781.6,1.1389]
[1753917167703,0.52888,3781.7,3781.6,1.9127]
[1753917168010,1.47298,3781.7,3781.6,1.9127]
[1753917170709,1.94958,3781.7,3781.6,1.9127]
[1753917171612,2.24088,3781.7,3781.6,1.9127]
[1753917175805,1.32208,3782.1,3781.1,1.45380279]
[1753917175806,1.47304,3781.2,3781.1,1.9127]
[1753917176015,2.24094,3781.2,3781.1,1.1588]
[1753917176217,2.24094,3781.2,3781.1,0.6932]
[1753917176407,1.02563,3780.6,3780.5,4.89515468]
[1753917176605,2.24103,3780.6,3780.5,1.9127]
[1753917177614,0.523,3782.0,3780.9,0.6932]
[1753917177810,0.9441,3781.1,3781.0,1.9127]
[1753917178009,0.9441,3780.6,3780.5,1.9127]
[1753917178204,1.1758,3780.6,3780.5,1.9127]
[1753917178408,1.4207,3780.6,3780.5,1.9127]
[1753917179110,0.7469,3780.6,3780.5,1.9127]
[1753917179311,0.2994,3780.6,3780.5,1.9127]
[1753917181018,0.52894,3781.3,3780.9,0.52898]
[1753917181217,0.99292,3781.4,3781.3,1.8391]
[1753917181518,1.76692,3781.4,3781.3,1.8391]
[1753917181723,0.9338,3781.4,3781.3,1.8391]
[1753917182015,0.7459,3781.4,3781.3,1.8391]
[1753917182210,0.52888,3781.7,3781.2,0.52893]
[1753917182211,1.00568,3781.7,3781.6,0.4394]
[1753917182417,1.92668,3781.7,3781.6,1.8391]
[1753917182613,2.22388,3781.7,3781.6,1.1219]
[1753917183418,2.22388,3781.7,3781.6,1.5441]
[1753917184122,0.52888,3781.7,3781.6,1.1219]
[1753917184322,1.46268,3781.7,3781.6,1.8391]
[1753917184522,2.22388,3781.7,3781.6,1.8391]
[1753917184722,3.14873279,3781.7,3781.6,1.1219]
[1753917184925,1.238,3781.3,3781.2,1.5441]
[1753917185421,1.695,3781.3,3781.2,1.5441]
[1753917186321,1.695,3781.3,3781.2,1.1219]
[1753917186719,1.695,3781.0,3780.9,1.8391]
[1753917187023,0.7459,3781.0,3780.9,2.36808]
[1753917187222,0.2889,3781.0,3780.9,2.36808]
[1753917188617,0.457,3781.2,3780.9,2.36808]
[1753917188813,0.457,3781.2,3781.0,1.1047]
[1753917189018,0.9338,3781.2,3781.1,1.8391]
[1753917190024,1.172,3781.2,3781.1,1.8391]
[1753917190229,1.695,3781.2,3781.1,1.1219]
[1753917190626,0.4768,3780.7,3780.6,1.8391]
[1753917190927,1.3978,3780.7,3780.6,1.8391]
[1753917191827,1.172,3780.7,3780.6,1.8391]
[1753917193020,0.9338,3780.7,3780.6,1.8391]
[1753917193226,0.7459,3780.9,3780.8,0.7344]
[1753917193427,0.7459,3780.9,3780.8,1.8391]
[1753917194120,0.52894,3781.3,3780.9,0.52898]
[1753917194326,0.52894,3781.3,3780.8,0.6295]
[1753917194327,2.22394,3781.3,3781.2,1.8391]
[1753917198034,1.92674,3781.3,3781.2,1.8391]
[1753917198738,2.22394,3781.3,3781.2,1.8391]
[1753917199942,2.22394,3781.3,3781.2,1.1219]
[1753917200240,2.22394,3781.3,3781.2,0.6825]
[1753917201031,0.52903,3780.6,3780.5,0.8271]
[1753917201231,1.3978,3780.6,3780.5,1.8391]
[1753917201939,1.172,3780.6,3780.5,1.8391]
[1753917202542,0.9338,3780.6,3780.5,1.8391]
[1753917205337,1.3978,3780.6,3780.5,1.8391]
[1753917205537,1.695,3780.6,3780.5,1.8391]
[1753917206944,0.9338,3780.6,3780.5,2.76395279]
[1753917207145,0.2889,3780.6,3780.5,2.76395279]
[1753917207545,0.7459,3780.6,3780.5,2.76395279]
[1753917210447,0.2889,3780.6,3780.5,2.76395279]
[1753917210746,1.3921,3780.9,3780.8,1.8575]
[1753917210949,1.6944,3780.9,3780.8,1.8575]
[1753917211448,1.3921,3780.9,3780.8,1.8575]
[1753917211650,1.6944,3780.9,3780.8,1.8575]
[1753917214247,0.475,3780.9,3780.8,1.8575]
[1753917214449,0.52896,3781.1,3780.9,0.7305]
[1753917214657,0.7213,3781.1,3781.0,1.8575]
[1753917214949,0.2819,3781.1,3781.0,1.8575]
[1753917215755,0.4394,3781.3,3781.0,1.25946]
[1753917215947,0.4394,3781.3,3781.2,1.8575]
[1753917216147,0.9144,3781.3,3781.2,1.8575]
[1753917217151,1.44333,3781.3,3781.2,1.8575]
[1753917217351,0.9144,3781.3,3781.2,1.8575]
[1753917217551,0.9144,3781.3,3781.2,2.38644]
[1753917217751,0.9144,3781.3,3781.2,1.8575]
[1753917218844,0.2819,3781.3,3781.2,1.8575]
[1753917220152,0.52889,3781.6,3781.2,0.7305]
[1753917220449,1.90747,3781.7,3781.6,1.8575]
[1753917220654,2.20977,3781.7,3781.6,1.8575]
[1753917221655,3.13462279,3781.7,3781.6,0.6219]
[1753917221851,3.13462279,3781.7,3781.6,0.383]
[1753917222355,3.13462279,3781.7,3781.6,0.6689]
[1753917222547,0.9144,3781.2,3781.1,1.8575]
[1753917222749,0.9144,3781.2,3781.1,1.104]
[1753917222959,1.3786,3780.8,3780.7,2.3865]
[1753917223553,1.6809,3780.8,3780.7,2.3865]
[1753917223753,1.6809,3780.8,3780.7,1.8575]
[1753917224057,1.6809,3780.8,3780.7,1.104]
[1753917224855,1.6809,3780.8,3780.7,1.5621]
[1753917225462,1.6809,3780.8,3780.7,1.104]
[1753917228561,1.6809,3780.8,3780.7,1.5621]
[1753917229866,1.6809,3780.8,3780.7,1.8575]
[1753917230058,1.3786,3780.8,3780.7,1.8575]
[1753917230461,1.46821,3780.7,3780.6,0.4351]
[1753917230665,1.77051,3780.7,3780.6,1.5621]
[1753917231059,2.20991,3780.7,3780.6,1.5621]
[1753917231661,1.90761,3780.7,3780.6,1.5621]
[1753917231863,0.7213,3780.7,3780.6,1.8575]
[1753917232065,0.9144,3780.7,3780.6,1.8575]
[1753917233770,0.7213,3780.8,3780.7,1.4224]
[1753917233964,0.9144,3780.8,3780.7,1.8575]
[1753917234565,1.1267,3780.8,3780.7,1.8575]
[1753917236868,0.9144,3780.8,3780.7,1.8575]
[1753917237172,0.7213,3781.0,3780.9,1.8575]
[1753917238161,0.2819,3781.1,3781.0,0.2954]
[1753917238366,0.2819,3781.1,3781.0,1.8575]
[1753917238977,0.7071,3781.1,3781.0,1.8575]
[1753917239669,0.7077,3781.4,3781.3,0.7231]
[1753917239864,0.7077,3781.4,3781.3,1.8326]
[1753917240066,0.9117,3781.4,3781.3,1.8326]
[1753917240268,0.73289,3781.6,3781.5,0.424]
[1753917240478,1.44059,3781.6,3781.5,1.8326]
[1753917240673,1.72399,3781.6,3781.5,1.8326]
[1753917240871,2.17699,3781.6,3781.5,1.8326]
[1753917242978,2.17699,3781.6,3781.5,1.0862]
[1753917244084,2.17699,3781.6,3781.5,0.8948]
[1753917244874,2.17699,3781.6,3781.5,1.0862]
[1753917245078,2.17699,3781.6,3781.5,1.5335]
[1753917245278,1.3647,3781.1,3781.0,2.12896]
[1753917245480,1.3647,3781.1,3781.0,2.36156]
[1753917245874,1.1653,3781.1,3781.0,2.36156]
[1753917246070,0.9117,3781.1,3781.0,2.36156]
[1753917246379,0.9117,3781.4,3781.3,2.12893]
[1753917246581,0.9117,3781.4,3781.3,1.8326]
[1753917247876,0.2825,3781.4,3781.3,1.8326]
[1753917248275,0.2825,3781.6,3781.5,1.8326]
[1753917249084,0.7077,3781.9,3781.8,0.7231]
[1753917249384,1.44054,3781.9,3781.8,1.8326]
[1753917249779,1.1111,3781.9,3781.8,1.8326]
[1753917252586,0.9117,3781.9,3781.8,1.8326]
[1753917254689,1.08482972,3782.2,3782.1,1.4579]
[1753917254989,1.08482972,3782.2,3782.1,1.8326]
[1753917255284,1.82122972,3782.2,3782.1,1.8326]
[1753917256382,0.88082972,3782.2,3782.1,1.0862]
[1753917256585,1.53782972,3782.2,3782.1,1.8326]
[1753917256985,1.53782972,3782.2,3782.1,2.75745279]
[1753917256986,0.17312972,3782.2,3782.1,2.75745279]
[1753917258284,0.204,3781.9,3781.8,0.72024]
[1753917258490,2.17694,3781.9,3781.8,0.7231]
[1753917258690,1.6481,3781.9,3781.8,0.7231]
[1753917258889,0.52891,3781.5,3781.2,0.92485279]
[1753917259088,1.6481,3781.3,3781.2,0.81643]
[1753917259284,1.6481,3781.3,3781.2,2.36153]
[1753917259491,0.9117,3781.3,3781.2,2.36153]
[1753917259690,0.9117,3781.3,3781.2,3.28638279]
[1753917259990,0.7077,3781.6,3781.5,2.3615]
[1753917260290,0.7077,3781.6,3781.5,1.8326]
[1753917260492,1.23657,3781.8,3781.7,0.7231]
[1753917260692,1.44057,3781.8,3781.7,1.8326]
[1753917261387,1.89357,3781.8,3781.7,1.8326]
[1753917261692,2.17697,3781.8,3781.7,1.8326]
[1753917263489,2.17697,3781.8,3781.4,0.52891]
[1753917263490,1.55238,3781.6,3781.3,0.3747]
[1753917263782,0.7401,3781.5,3781.4,1.5335]
[1753917264185,1.6481,3781.5,3781.4,1.8326]
[1753917264586,0.7401,3781.1,3781.0,1.8326]
[1753917264793,0.4865,3781.1,3781.0,1.8326]
[1753917264995,0.2825,3781.1,3781.0,1.8326]
[1753917266295,1.44061,3781.5,3781.4,0.7231]
[1753917266496,1.89361,3781.5,3781.4,1.8326]
[1753917266691,2.17701,3781.5,3781.4,1.8326]
[1753917267694,1.01544,3781.2,3781.1,0.424]
[1753917267997,1.69424,3781.2,3781.1,1.8326]
[1753917268699,1.1653,3781.2,3781.1,1.8326]
[1753917268892,0.9117,3781.2,3781.1,1.8326]
[1753917269497,1.01551,3781.5,3781.4,0.7174]
[1753917269793,2.17151,3781.5,3781.4,1.8256]
[1753917270298,1.6426,3781.5,3781.4,1.8256]
[1753917274796,0.52889,3781.6,3781.5,0.3499]
[1753917275199,2.17149,3781.6,3781.5,1.8256]
[1753917276609,1.87119,3781.6,3781.5,1.8256]
[1753917276799,0.82911,3782.1,3781.8,0.52885]
[1753917277006,1.74841,3782.1,3782.0,1.8256]
[1753917277197,1.44811,3782.1,3782.0,1.8256]
[1753917277399,1.87111,3782.1,3782.0,1.8256]
[1753917278501,0.4866,3782.1,3782.0,1.8256]
[1753917278709,1.41323972,3782.2,3782.1,0.7174]
[1753917278903,1.61153972,3782.2,3782.1,1.8256]
[1753917279907,0.46142972,3782.2,3782.1,1.8256]
[1753917280108,0.17312972,3782.2,3782.1,1.8256]
[1753917283010,0.59612972,3782.2,3782.1,1.8256]
[1753917283303,0.17312972,3782.2,3782.1,1.8256]
[1753917288303,1.08272972,3782.2,3782.1,1.8256]
[1753917289102,0.5347,3781.7,3781.6,0.96198]
[1753917289303,1.6426,3781.7,3781.6,2.35448]
[1753917289904,1.3423,3781.7,3781.6,2.35448]
[1753917290212,0.9096,3781.7,3781.6,2.35448]
[1753917293117,1.0959,3781.7,3781.6,2.35448]
[1753917294113,1.3423,3781.7,3781.6,2.35448]
[1753917295009,1.156,3781.7,3781.6,2.35448]
[1753917295310,0.9096,3781.7,3781.6,2.35448]
[1753917297513,1.0959,3781.7,3781.6,2.35448]
[1753917298516,0.9096,3781.7,3781.6,2.35448]
[1753917300516,1.6055,3781.7,3781.6,2.35448]
[1753917300911,1.09798251,3782.2,3782.1,0.52881]
[1753917301115,1.25892972,3782.2,3782.1,2.39421]
[1753917301319,1.48632972,3782.2,3782.1,2.39421]
[1753917301616,0.7137,3781.5,3781.4,0.7463]
[1753917301812,1.6082,3781.9,3781.8,1.8654]
[1753917302512,0.52882,3782.1,3781.8,1.8654]
[1753917302513,0.17312972,3782.2,3781.8,2.79025279]
[1753917302713,1.48632972,3782.2,3782.1,2.39421]
[1753917302912,1.78132972,3782.2,3782.1,2.39421]
[1753917304916,0.65942972,3782.2,3782.1,2.39421]
[1753917305111,0.17312972,3782.2,3782.1,2.39421]
[1753917307418,0.59912972,3782.2,3782.1,2.39421]
[1753917309018,0.88942972,3782.2,3782.1,2.39421]
[1753917309212,1.08542972,3782.2,3782.1,2.39421]
[1753917312226,0.17312972,3782.2,3782.1,3.31906279]
[1753917313117,0.426,3784.2,3783.1,0.6542]
[1753917313317,1.71509,3783.7,3783.6,1.0906]
[1753917313521,1.71509,3783.7,3783.3,0.4649]
[1753917313522,0.7137,3783.4,3783.3,0.5313]
[1753917313722,0.7137,3782.7,3782.6,1.0441]
[1753917313929,1.6125,3782.7,3782.6,1.509]
[1753917314136,0.491,3782.7,3782.6,1.8654]
[1753917314426,1.3214,3784.0,3783.2,2.39405]
[1753917314427,1.0901,3783.3,3783.2,2.39405]
[1753917314628,1.6125,3783.3,3783.2,2.39405]
[1753917314926,1.1397,3783.3,3783.2,2.39405]
[1753917315325,1.1397,3783.3,3783.2,1.8654]
[1753917315527,1.3175,3783.3,3783.2,1.8654]
[1753917315727,1.6125,3783.2,3783.1,0.7463]
[1753917315923,1.6125,3783.2,3783.1,0.3564]
[1753917316524,1.6125,3783.2,3783.1,0.6542]
[1753917316829,1.6125,3783.2,3783.1,1.0906]
[1753917318328,1.6125,3783.2,3783.1,1.5555]
[1753917318527,1.6125,3783.2,3783.1,1.8654]
[1753917319530,1.6125,3783.2,3783.1,1.4005]
[1753917319730,2.53735279,3783.2,3783.1,1.0906]
[1753917320034,1.24242,3782.8,3782.7,1.0906]
[1753917320325,1.6125,3782.8,3782.7,1.0906]
[1753917320526,1.6125,3782.8,3782.7,1.8654]
[1753917321327,2.14121,3782.8,3782.7,1.8654]
[1753917322229,1.6125,3782.8,3782.7,1.8654]
[1753917322625,1.3175,3782.8,3782.7,1.8654]
[1753917322822,1.1397,3782.8,3782.7,1.8654]
[1753917324232,1.3175,3782.8,3782.7,1.8654]
[1753917325734,2.14122,3782.8,3782.7,1.8654]
[1753917326337,1.6125,3782.8,3782.7,1.8654]
[1753917328830,1.3175,3782.8,3782.7,1.8654]
[1753917329835,1.1397,3782.8,3782.7,1.8654]
[1753917330727,1.3145,3782.8,3782.7,1.8654]
[1753917332641,0.2903,3782.8,3782.7,1.8654]
[1753917332842,0.7355,3782.8,3782.7,1.8654]
[1753917333043,0.9358,3782.8,3782.7,1.8654]
[1753917333445,1.6329,3782.8,3782.7,1.8654]
[1753917335149,1.3323,3782.8,3782.7,1.8654]
[1753917335340,0.52868,3783.1,3783.0,0.4287]
[1753917335545,2.15598,3783.1,3783.0,1.7894]
[1753917336748,0.7067,3782.7,3782.6,1.1385]
[1753917336951,1.6273,3782.7,3782.6,1.1385]
[1753917337452,1.6273,3782.7,3782.6,1.7894]
[1753917338652,1.6273,3782.7,3782.2,0.7629]
[1753917338849,0.92485279,3782.9,3782.2,1.3683]
[1753917338850,1.6273,3782.3,3782.2,1.3683]
[1753917339057,1.6273,3782.3,3782.2,1.0796]
[1753917339058,2.55215279,3782.3,3782.2,1.0796]
[1753917339750,2.55215279,3782.3,3782.2,1.7894]
[1753917342157,3.08094279,3782.3,3782.2,1.7894]
[1753917342454,2.55215279,3782.3,3782.2,1.7894]
[1753917343053,0.485,3781.8,3781.7,1.0265]
[1753917343256,1.6273,3781.8,3781.7,1.0265]
[1753917343452,1.6273,3781.8,3781.7,1.4476]
[1753917343657,1.6273,3781.8,3781.7,1.7894]
[1753917345556,3.08101279,3781.8,3781.7,1.7894]
[1753917346156,2.55215279,3781.8,3781.7,1.7894]
[1753917346660,2.55215279,3781.8,3781.1,0.21506538]
[1753917346661,0.4452,3782.2,3782.0,0.4287]
[1753917346855,0.9302,3782.1,3782.0,1.4476]
[1753917347057,0.4452,3783.3,3782.1,1.32204]
[1753917347252,0.52859,3783.7,3783.1,0.7174]
[1753917347560,0.9302,3783.3,3783.2,1.7894]
[1753917348259,1.1519,3783.3,3783.2,1.7894]
[1753917348563,1.3267,3783.3,3783.2,1.7894]
[1753917351461,1.1519,3783.3,3783.2,1.7894]
[1753917351650,1.22545279,3783.6,3783.5,0.4287]
[1753917351651,0.4452,3783.6,3783.5,0.4287]
[1753917351857,1.1519,3783.6,3783.5,1.7894]
[1753917352161,1.6273,3783.6,3783.5,1.7894]
[1753917353761,1.1519,3783.6,3783.5,1.7894]
[1753917354062,0.9302,3783.6,3783.5,1.7894]
[1753917354760,0.485,3783.7,3783.6,1.5878]
[1753917354970,0.485,3783.9,3783.8,1.24596]
[1753917355264,0.9302,3783.9,3783.8,2.31796]
[1753917355564,1.32105,3785.0,3783.8,2.31796]
[1753917355565,1.2308,3785.6,3785.5,0.7174]
[1753917355767,2.70451266,3785.6,3785.5,1.7894]
[1753917355963,2.70451266,3785.6,3785.0,0.9495]
[1753917356264,2.0073,3785.7,3785.6,1.0265]
[1753917356471,2.1595544,3785.7,3785.6,1.0265]
[1753917356661,2.1595544,3785.7,3785.3,0.7378]
[1753917356662,1.6273,3785.4,3785.3,0.7378]
[1753917356859,0.38,3785.7,3785.4,1.60035]
[1753917357059,1.6273,3785.5,3785.4,2.02905]
[1753917357459,1.6273,3785.5,3785.4,1.5007]
[1753917358068,1.6273,3785.5,3785.4,1.7894]
[1753917358968,1.6273,3785.5,3785.4,1.3683]
[1753917359262,0.4918,3784.7,3784.6,1.4069]
[1753917359460,1.1955,3784.7,3784.6,1.777]
[1753917359654,1.3778,3784.7,3784.6,1.777]
[1753917359858,1.1955,3784.7,3784.6,1.777]
[1753917360254,1.6615,3784.7,3784.6,1.777]
[1753917361458,0.52852,3784.2,3783.7,38.074]
[1753917361763,1.6615,3784.1,3784.0,0.9803]
[1753917361955,1.6615,3784.1,3784.0,1.3504]
[1753917363462,1.6615,3784.1,3784.0,1.777]
[1753917363770,1.6615,3784.1,3784.0,1.3504]
[1753917363971,1.6615,3784.1,3783.2,0.7083]
[1753917364157,1.1955,3783.5,3783.4,1.1252]
[1753917364361,1.3778,3783.5,3783.4,1.777]
[1753917364562,1.1955,3783.5,3783.4,1.777]
[1753917364759,1.72401,3784.3,3784.2,0.6986]
[1753917364968,2.19002,3784.2,3784.1,0.6518]
[1753917365266,0.7375,3783.6,3783.5,1.1252]
[1753917365470,0.458,3784.1,3783.6,0.9552]
[1753917365662,1.90633,3784.1,3784.0,1.1252]
[1753917365967,1.90633,3784.1,3784.0,1.777]
[1753917365968,2.19003,3784.1,3784.0,1.777]
[1753917368772,2.19003,3784.1,3784.0,1.3504]
[1753917371173,2.19003,3784.1,3784.0,1.777]
[1753917373072,2.19003,3784.1,3784.0,1.3504]
[1753917374676,2.19003,3784.1,3784.0,0.4704]
[1753917374880,1.6555,3783.7,3783.6,1.879]
[1753917375083,1.6555,3783.7,3783.6,2.3056]
[1753917375282,1.3718,3783.7,3783.6,2.3056]
[1753917375577,0.7553,3783.7,3783.6,2.3056]
[1753917375770,1.72399,3784.4,3784.3,0.415]
[1753917375977,1.72399,3784.4,3784.3,1.4934]
[1753917375978,2.00769,3784.4,3784.3,1.4934]
[1753917376276,2.18399,3784.4,3784.3,1.0668]
[1753917381483,2.18399,3784.4,3784.3,0.6518]
[1753917381683,2.18399,3784.4,3784.3,0.3701]
[1753917381883,1.26602,3784.2,3784.1,1.0668]
[1753917382081,2.18402,3784.2,3784.1,1.777]
[1753917384284,2.18402,3784.2,3784.1,1.3504]
[1753917384491,2.18402,3784.2,3784.1,1.0668]
[1753917384686,0.52858,3783.8,3783.7,0.1887]
[1753917384888,0.72308,3783.8,3783.7,1.0668]
[1753917385082,1.47838,3783.8,3783.7,1.3504]
[1753917385489,0.9498,3783.8,3783.7,1.3504]
[1753917385688,0.9498,3783.8,3783.7,1.777]
[1753917386680,0.7553,3783.8,3783.7,1.777]
[1753917387085,0.2973,3783.8,3783.7,1.777]
[1753917387794,1.28387,3783.8,3783.7,1.777]
[1753917387993,0.7553,3783.8,3783.7,1.777]
[1753917388195,0.9498,3783.8,3783.7,1.777]
[1753917388691,1.1696,3783.8,3783.7,1.777]
[1753917388899,1.6344,3783.8,3783.7,1.777]
[1753917389597,1.6287,3783.7,3783.6,1.75809]
[1753917389788,1.6287,3783.7,3783.6,2.33799]
[1753917389789,1.3334,3783.7,3783.6,2.33799]
[1753917390195,1.1639,3783.7,3783.6,2.33799]
[1753917390494,0.52856,3784.0,3783.9,0.7094]
[1753917390792,0.7257,3784.8,3784.7,0.7094]
[1753917390991,0.2831,3785.0,3784.9,0.7094]
[1753917391186,0.2831,3785.0,3784.9,1.8094]
[1753917391392,0.97099,3785.2,3784.9,0.7094]
[1753917391592,1.45709,3785.2,3785.1,0.7094]
[1753917391791,1.45709,3785.2,3785.1,1.8094]
[1753917392190,1.86179,3785.2,3785.1,1.8094]
[1753917392396,2.15709,3785.2,3785.1,1.80410337]
[1753917394305,1.69229,3785.2,3785.1,1.80410337]
[1753917395203,0.4861,3784.7,3784.6,0.72886]
[1753917395502,0.4426,3784.9,3784.8,0.52844]
[1753917395698,0.52839,3785.2,3785.1,0.7094]
[1753917395902,0.52839,3785.2,3785.1,1.8094]
[1753917396099,1.25409,3785.2,3785.1,1.8094]
[1753917396299,0.9287,3785.2,3785.1,2.33779]
[1753917396499,0.9287,3785.2,3785.1,1.8094]
[1753917397107,0.2953,3785.6,3785.5,1.8094]
[1753917397108,1.01442,3785.6,3785.5,1.8094]
[1753917397305,1.45702,3785.6,3785.5,1.8094]
[1753917397705,2.15702,3785.6,3785.5,1.8094]
[1753917398006,0.9287,3785.2,3785.1,1.8094]
[1753917398197,1.4592,3785.2,3785.1,1.0671]
[1753917398400,1.6287,3785.2,3785.1,1.0671]
[1753917398599,1.6287,3785.2,3785.1,1.5294]
[1753917398902,0.2831,3785.0,3784.9,0.3509]
[1753917399100,1.6287,3784.8,3784.7,1.0671]
[1753917399404,1.3334,3784.8,3784.7,1.8094]
[1753917399597,0.9287,3784.8,3784.7,1.8094]
[1753917399799,0.9287,3785.0,3784.9,1.8094]
[1753917400609,0.2831,3785.0,3784.9,1.8094]
[1753917400805,0.2831,3785.0,3784.3,1.32127]
[1753917400806,0.52835,3785.4,3785.3,1.3471]
[1753917401012,0.9287,3785.5,3785.4,1.8094]
[1753917402706,0.9287,3785.5,3785.4,5.46506999]
[1753917402913,1.3334,3785.5,3785.4,5.46506999]
[1753917406913,1.6287,3785.5,3785.4,5.46506999]
[1753917407618,2.55091034,3785.5,3785.4,5.00276999]
[1753917409521,2.55091034,3785.5,3785.4,5.46506999]
[1753917410019,1.6287,3785.5,3785.4,5.46506999]
[1753917410219,1.3334,3785.5,3785.4,5.46506999]
[1753917411618,1.6287,3785.5,3785.4,5.46506999]
[1753917412918,0.52833,3785.6,3785.4,4.36506999]
[1753917413224,0.97093,3785.6,3785.5,1.8094]
[1753917413523,1.45703,3785.6,3785.5,1.8094]
[1753917414325,1.62653,3785.6,3785.5,1.8094]
[1753917415524,1.62653,3785.6,3785.5,5.46506999]
[1753917415825,1.86173,3785.6,3785.5,5.46506999]
[1753917416029,2.15703,3785.6,3785.5,5.46506999]
[1753917418829,1.86173,3785.6,3785.5,5.46506999]
[1753917421237,2.16843,3785.6,3785.5,5.46506999]
[1753917422231,0.52833,3785.6,3785.5,5.46506999]
[1753917422626,0.96003,3785.6,3785.5,5.46506999]
[1753917422826,1.26383,3785.6,3785.5,5.46506999]
[1753917423029,1.45353,3785.6,3785.5,5.46506999]
[1753917423828,0.9252,3785.6,3785.5,5.46506999]
[1753917424838,0.90832,3785.7,3785.5,5.46506999]
[1753917424839,0.90832,3785.7,3785.6,0.716]
[1753917425137,1.83352,3785.7,3785.6,1.7686]
[1753917425338,1.99052,3785.7,3785.6,1.7686]
[1753917425637,1.99052,3785.7,3785.6,5.42426999]
[1753917425833,1.83352,3785.7,3785.6,5.42426999]
[1753917426036,0.90832,3785.7,3785.6,5.42426999]
[1753917426536,1.34002,3785.7,3785.6,5.42426999]
[1753917426839,1.64382,3785.7,3785.6,5.42426999]
[1753917428941,1.83352,3785.7,3785.6,5.42426999]
[1753917429440,1.09802,3785.7,3785.6,5.42426999]
[1753917429637,0.5282,3786.6,3785.7,1.32077]
[1753917429836,1.71,3786.6,3786.5,0.716]
[1753917430038,2.87421216,3786.6,3786.5,1.7686]
[1753917430234,20.08631216,3786.6,3786.5,5.42426999]
[1753917430438,19.3538,3786.6,3786.5,5.42426999]
[1753917430639,0.7181,3786.8,3786.7,1.7686]
[1753917430945,1.1818,3786.8,3786.7,1.3477]
[1753917431245,2.14166,3786.8,3786.7,0.3413]
[1753917431535,2.14166,3786.8,3786.5,4.07656999]
[1753917431536,2.14169,3786.6,3786.5,4.28736999]
[1753917431840,3.06390034,3786.6,3786.5,3.65566999]
[1753917433640,21.26690034,3786.6,3786.5,3.65566999]
[1753917433937,21.26690034,3786.6,3786.5,4.28736999]
[1753917434135,21.26690034,3786.6,3786.5,4.47616999]
[1753917434342,20.34469,3786.6,3786.5,4.47616999]
[1753917434539,21.26690034,3786.6,3786.5,4.47616999]
[1753917434934,21.26690034,3786.6,3786.5,4.71346999]
[1753917435943,21.26690034,3786.6,3786.5,3.99696999]
[1753917436942,1.94390034,3786.6,3786.5,3.65566999]
[1753917437244,21.26590034,3786.6,3786.5,5.00336999]
[1753917438034,21.26590034,3786.6,3786.5,4.28736999]
[1753917438239,21.26590034,3786.6,3786.5,3.99696999]
[1753917438640,21.26590034,3786.6,3786.5,3.65566999]
[1753917438936,26.26590034,3786.6,3786.5,3.65566999]
[1753917439852,0.52827,3786.0,3785.9,0.2904]
[1753917440143,0.52827,3786.0,3785.4,0.4261]
[1753917440144,0.71805,3785.5,3785.4,0.4261]
[1753917440344,0.71805,3785.5,3785.4,1.7686]
[1753917440645,0.1897,3785.5,3785.4,1.7686]
[1753917440843,0.52834,3785.6,3785.4,1.7686]
[1753917441147,0.52834,3785.6,3785.5,1.7686]
[1753917441843,1.14974,3785.6,3785.5,1.7686]
[1753917442146,2.13794,3785.6,3785.5,1.7686]
[1753917443247,2.13794,3785.6,3785.5,5.42426999]
[1753917445247,1.45354,3785.6,3785.5,4.71296999]
[1753917445548,3.06015034,3785.6,3785.5,5.42426999]
[1753917446549,2.13794,3785.6,3785.5,5.42426999]
[1753917447745,3.06015034,3785.6,3785.5,3.65566999]
[1753917447946,3.06015034,3785.6,3785.5,3.99696999]
[1753917448146,3.06015034,3785.6,3785.5,4.28736999]
[1753917448847,3.06015034,3785.6,3785.5,5.42716999]
[1753917450055,3.06015034,3785.6,3785.5,5.00336999]
[1753917450256,3.06015034,3785.6,3785.5,5.42716999]
[1753917450654,2.80065034,3785.6,3785.5,1.57693999]
[1753917450851,0.52852,3784.2,3784.1,1.2391]
[1753917451053,0.52856,3783.9,3783.8,0.39642163]
[1753917451253,0.52856,3783.9,3783.8,2.21892163]
[1753917453553,1.45077034,3783.9,3783.8,2.21892163]
[1753917453960,1.45077034,3783.9,3783.8,5.87459162]
[1753917454463,0.52856,3783.9,3783.8,5.87459162]
[1753917456359,1.45077034,3783.9,3783.8,5.87459162]
[1753917464970,1.45077034,3783.9,3783.8,4.71379162]
[1753917465175,18.73656,3783.9,3783.8,5.87459162]
[1753917468975,1.3211,3784.8,3783.9,0.737]
[1753917469281,1.45065034,3784.8,3784.7,1.8225]
[1753917469479,19.65865034,3784.8,3784.7,1.8225]
[1753917469773,19.65865034,3784.8,3784.7,0.3107]
[1753917470373,19.65865034,3784.8,3784.7,3.96636999]
[1753917470574,19.65865034,3784.8,3784.7,3.65566999]
[1753917470769,24.65865034,3784.8,3784.7,2.44926999]
[1753917471375,24.65865034,3784.8,3783.8,0.39642163]